bitfinex/quotes_BTCUSD_20250616
["timestamp","ask_amount","ask_price","bid_price","bid_amount"]
[1750034605528,4.871175,105650.0,105640.0,0.95940335]
[1750034605770,0.001,105650.0,105640.0,0.93108927]
[1750034606447,0.001,105650.0,105640.0,0.53717394]
[1750034606669,0.001,105650.0,105640.0,0.9594849]
[1750034606896,0.001,105650.0,105640.0,0.93108927]
[1750034607137,0.001,105650.0,105640.0,0.98759898]
[1750034609009,0.001,105650.0,105640.0,1.47775607]
[1750034609243,0.001,105650.0,105640.0,1.08384074]
[1750034609959,0.001,105650.0,105640.0,1.24032074]
[1750034610429,0.001,105650.0,105640.0,1.08384074]
[1750034610653,0.001,105650.0,105640.0,1.24032074]
[1750034615752,0.001,105650.0,105640.0,1.59648181]
[1750034616628,0.001,105650.0,105640.0,1.78580403]
[1750034616850,0.001,105650.0,105640.0,1.73876034]
[1750034617067,0.001,105650.0,105640.0,1.5399721]
[1750034617763,1.0,105660.0,105640.0,1.5349721]
[1750034617984,1.0,105660.0,105650.0,0.64619352]
[1750034618211,1.0,105660.0,105650.0,0.37112694]
[1750034618428,1.0,105660.0,105650.0,0.92152227]
[1750034619363,1.001,105660.0,105650.0,0.92852227]
[1750034619596,1.001,105660.0,105650.0,0.87180041]
[1750034620921,1.001,105660.0,105650.0,0.87480041]
[1750034621163,1.001,105660.0,105650.0,0.71832041]
[1750034621402,1.001,105660.0,105650.0,0.9031506]
[1750034621612,1.001,105660.0,105650.0,1.15090088]
[1750034621847,1.001,105660.0,105650.0,1.20192692]
[1750034626030,1.001,105660.0,105650.0,1.04544692]
[1750034626255,1.001,105660.0,105650.0,1.16407235]
[1750034627786,1.001,105660.0,105650.0,1.16405903]
[1750034631142,1.001,105660.0,105650.0,1.2018736]
[1750034631386,1.001,105660.0,105650.0,1.0454336]
[1750034631635,1.001,105660.0,105650.0,0.51625272]
[1750034632130,1.001,105660.0,105650.0,0.91016805]
[1750034632377,1.001,105660.0,105650.0,1.06960981]
[1750034632621,1.001,105660.0,105650.0,1.10742438]
[1750034632862,1.001,105660.0,105650.0,1.2035736]
[1750034635773,1.001,105660.0,105650.0,1.1752332]
[1750034637495,1.001,105660.0,105650.0,1.23195506]
[1750034638843,1.001,105660.0,105650.0,1.42125936]
[1750034639132,1.001,105660.0,105650.0,1.41691561]
[1750034639368,1.001,105660.0,105650.0,1.44520148]
[1750034639583,1.001,105660.0,105650.0,1.45466606]
[1750034639797,1.001,105660.0,105650.0,1.44520157]
[1750034640056,0.59193232,105660.0,105650.0,1.90779075]
[1750034640330,0.35937818,105660.0,105650.0,2.76746302]
[1750034640573,0.10403236,105740.0,105700.0,0.23863371]
[1750034640574,0.0303,105730.0,105700.0,0.23863371]
[1750034640816,0.0322,105740.0,105720.0,0.39391533]
[1750034641057,0.0636,105750.0,105730.0,0.55035533]
[1750034641302,4.870175,105740.0,105730.0,0.02267232]
[1750034641541,0.41248134,105740.0,105730.0,0.17911232]
[1750034641790,0.41248116,105740.0,105730.0,0.17911232]
[1750034642041,0.41248125,105740.0,105730.0,0.02276207]
[1750034642294,0.0636,105740.0,105730.0,0.02276207]
[1750034642521,0.0636,105740.0,105730.0,0.17920207]
[1750034642743,0.4036,105740.0,105730.0,0.15652975]
[1750034642961,0.41248148,105740.0,105730.0,8.975e-05]
[1750034643193,0.41248148,105740.0,105730.0,0.15648975]
[1750034643194,0.80639681,105740.0,105730.0,0.15648975]
[1750034643415,5.67657187,105740.0,105730.0,8.975e-05]
[1750034643632,5.2826567,105740.0,105730.0,8.975e-05]
[1750034643844,5.273775,105740.0,105730.0,8.975e-05]
[1750034644063,5.28265662,105740.0,105730.0,8.975e-05]
[1750034644298,5.273775,105740.0,105730.0,8.975e-05]
[1750034644598,5.275775,105740.0,105730.0,8.975e-05]
[1750034644818,5.2846567,105740.0,105730.0,8.975e-05]
[1750034645035,5.28465673,105740.0,105730.0,8.975e-05]
[1750034645248,5.275775,105740.0,105730.0,8.975e-05]
[1750034645436,5.28465665,105740.0,105730.0,8.975e-05]
[1750034645680,5.28465658,105740.0,105730.0,8.975e-05]
[1750034645899,5.275775,105740.0,105730.0,8.975e-05]
[1750034646088,5.28465665,105740.0,105730.0,8.975e-05]
[1750034646336,5.28465669,105740.0,105730.0,8.975e-05]
[1750034646560,5.28465659,105740.0,105730.0,8.975e-05]
[1750034646781,5.275775,105740.0,105730.0,8.975e-05]
[1750034647007,5.28465653,105740.0,105730.0,8.975e-05]
[1750034647231,5.28465648,105740.0,105730.0,8.975e-05]
[1750034647450,5.28465654,105740.0,105730.0,8.975e-05]
[1750034647664,5.275775,105740.0,105730.0,8.975e-05]
[1750034647916,5.28465649,105740.0,105730.0,8.975e-05]
[1750034648135,5.28465651,105740.0,105730.0,8.975e-05]
[1750034648362,5.275775,105740.0,105730.0,8.975e-05]
[1750034649011,5.28465671,105740.0,105730.0,8.975e-05]
[1750034649452,5.275775,105740.0,105730.0,8.975e-05]
[1750034651461,5.28465661,105740.0,105730.0,8.975e-05]
[1750034651924,5.275775,105740.0,105730.0,8.975e-05]
[1750034652145,5.28465659,105740.0,105730.0,8.975e-05]
[1750034652596,5.28465654,105740.0,105730.0,8.975e-05]
[1750034652815,5.28465663,105740.0,105730.0,8.975e-05]
[1750034653036,5.28465665,105740.0,105730.0,8.975e-05]
[1750034653904,5.28465669,105740.0,105730.0,8.975e-05]
[1750034654106,5.275775,105740.0,105730.0,8.975e-05]
[1750034654546,5.28465667,105740.0,105730.0,8.975e-05]
[1750034655222,5.275775,105740.0,105730.0,8.975e-05]
[1750034655451,5.28465288,105740.0,105730.0,8.975e-05]
[1750034655639,5.28465263,105740.0,105730.0,8.975e-05]
[1750034655842,5.275775,105740.0,105730.0,8.975e-05]
[1750034656089,5.74156222,105740.0,105730.0,8.975e-05]
[1750034656304,5.38080169,105740.0,105730.0,8.975e-05]
[1750034656525,5.37192422,105740.0,105730.0,8.975e-05]
[1750034656971,5.38080195,105740.0,105730.0,8.975e-05]
[1750034657190,5.275775,105740.0,105730.0,8.975e-05]
[1750034657456,0.39195546,105740.0,105730.0,8.975e-05]
[1750034657677,0.35975554,105740.0,105730.0,8.975e-05]
[1750034657901,0.38097772,105740.0,105730.0,8.975e-05]
[1750034658124,0.42195551,105740.0,105730.0,8.975e-05]
[1750034658357,0.42195539,105740.0,105730.0,8.975e-05]
[1750034658575,0.41307772,105740.0,105730.0,8.975e-05]
[1750034658793,5.84230287,105740.0,105730.0,8.975e-05]
[1750034659070,5.85175931,105740.0,105730.0,8.975e-05]
[1750034659316,5.85118,105740.0,105730.0,8.975e-05]
[1750034659558,5.85117997,105740.0,105730.0,8.975e-05]
[1750034659790,5.85117998,105740.0,105730.0,8.975e-05]
[1750034660232,5.85175922,105740.0,105730.0,8.975e-05]
[1750034660457,5.87009285,105740.0,105730.0,8.975e-05]
[1750034660676,5.8700929,105740.0,105730.0,8.975e-05]
[1750034660889,5.74913248,105740.0,105730.0,8.975e-05]
[1750034661118,5.7580095,105740.0,105730.0,8.975e-05]
[1750034661339,5.74913248,105740.0,105730.0,8.975e-05]
[1750034661545,5.7580095,105740.0,105730.0,8.975e-05]
[1750034661750,5.7590095,105740.0,105730.0,8.975e-05]
[1750034661966,5.75013248,105740.0,105730.0,8.975e-05]
[1750034662167,5.74713248,105740.0,105730.0,8.975e-05]
[1750034662381,5.75600944,105740.0,105730.0,8.975e-05]
[1750034662590,5.75658883,105740.0,105730.0,8.975e-05]
[1750034662790,5.80381391,105740.0,105730.0,8.975e-05]
[1750034663008,5.80381381,105740.0,105730.0,8.975e-05]
[1750034663212,5.79493685,105740.0,105730.0,8.975e-05]
[1750034663421,5.80781381,105740.0,105730.0,8.975e-05]
[1750034663875,5.79835737,105740.0,105730.0,8.975e-05]
[1750034664055,5.78890102,105740.0,105730.0,8.975e-05]
[1750034664269,5.76000934,105740.0,105730.0,8.975e-05]
[1750034664488,5.75113248,105740.0,105730.0,8.975e-05]
[1750034664897,5.76000956,105740.0,105730.0,8.975e-05]
[1750034665170,5.75113248,105740.0,105730.0,8.975e-05]
[1750034665368,0.0307,105730.0,105710.0,0.26325911]
[1750034665585,0.0307,105730.0,105710.0,0.35590063]
[1750034666007,0.0307,105730.0,105710.0,0.38640063]
[1750034666479,0.03957705,105730.0,105710.0,0.38640063]
[1750034666705,0.03957705,105730.0,105710.0,0.31684143]
[1750034666981,0.42504437,105730.0,105710.0,0.31684143]
[1750034667193,0.43492142,105730.0,105710.0,0.31784143]
[1750034667418,0.42604437,105730.0,105710.0,0.34621771]
[1750034667633,0.43492142,105730.0,105710.0,0.34621771]
[1750034667866,0.43492143,105730.0,105710.0,0.34621771]
[1750034668173,0.42604437,105730.0,105710.0,0.34621771]
[1750034668344,0.43490857,105730.0,105710.0,0.31784143]
[1750034668561,0.43490857,105730.0,105710.0,0.34621771]
[1750034668757,0.42604437,105730.0,105710.0,0.34621771]
[1750034668962,0.43490854,105730.0,105710.0,0.34621771]
[1750034669363,0.42604437,105730.0,105710.0,0.18989771]
[1750034669574,0.42604437,105730.0,105710.0,0.48020197]
[1750034669775,0.42604437,105730.0,105720.0,0.02837628]
[1750034669973,0.43490857,105730.0,105720.0,0.05098767]
[1750034670138,0.42604437,105730.0,105720.0,0.05098767]
[1750034670379,0.43490863,105730.0,105720.0,0.05098767]
[1750034670587,0.42604437,105730.0,105720.0,0.05098767]
[1750034671012,0.4339086,105730.0,105720.0,0.05098767]
[1750034671218,0.43490858,105730.0,105720.0,0.05098767]
[1750034671414,0.39534437,105730.0,105720.0,0.08546426]
[1750034671630,0.001,105730.0,105720.0,0.11606426]
[1750034672040,0.001,105730.0,105720.0,0.14746426]
[1750034672893,0.001,105730.0,105720.0,0.11398767]
[1750034675014,0.001,105730.0,105720.0,0.15182271]
[1750034677025,0.001,105730.0,105720.0,0.30810271]
[1750034677650,0.45426227,105740.0,105720.0,0.27026767]
[1750034678053,0.45426218,105740.0,105720.0,0.27026767]
[1750034678473,0.44539916,105740.0,105720.0,0.27026767]
[1750034678671,0.45426225,105740.0,105720.0,0.27026767]
[1750034678873,0.44539916,105740.0,105720.0,0.27026767]
[1750034679240,0.45427442,105740.0,105720.0,0.27026767]
[1750034679471,0.44539916,105740.0,105720.0,0.27026767]
[1750034679730,0.44539916,105740.0,105720.0,0.26926767]
[1750034679949,0.44839916,105740.0,105720.0,0.26926767]
[1750034680159,0.45827393,105740.0,105720.0,0.26926767]
[1750034680396,0.45827403,105740.0,105720.0,0.33400903]
[1750034680658,0.48897398,105740.0,105720.0,0.30260903]
[1750034680885,0.48009916,105740.0,105720.0,0.23786767]
[1750034681596,0.48897391,105740.0,105720.0,0.23786767]
[1750034682077,0.48897392,105740.0,105720.0,0.23786767]
[1750034682333,0.48009916,105740.0,105720.0,0.23786767]
[1750034682560,0.48897394,105740.0,105720.0,0.08158767]
[1750034682990,0.48009916,105740.0,105720.0,0.08158767]
[1750034683498,0.48897383,105740.0,105720.0,0.08158767]
[1750034683979,0.48897385,105740.0,105720.0,0.08158767]
[1750034684225,0.45827392,105740.0,105720.0,0.11328767]
[1750034684468,0.44939916,105740.0,105720.0,0.11328767]
[1750034685193,0.45827414,105740.0,105720.0,0.11328767]
[1750034685383,0.45827441,105740.0,105720.0,0.11328767]
[1750034685589,0.45827419,105740.0,105720.0,0.11328767]
[1750034686239,0.44939916,105740.0,105720.0,0.08158767]
[1750034686442,0.45827415,105740.0,105720.0,0.08158767]
[1750034686583,0.45827416,105740.0,105720.0,0.08158767]
[1750034686807,0.45827416,105740.0,105720.0,0.38038767]
[1750034687314,0.45827414,105740.0,105720.0,0.38038767]
[1750034687504,0.45827388,105740.0,105720.0,0.38038767]
[1750034687755,0.4582739,105740.0,105720.0,0.41822271]
[1750034687960,0.458274,105740.0,105720.0,0.44872271]
[1750034688379,0.458274,105740.0,105720.0,0.41088767]
[1750034688380,0.44939916,105740.0,105720.0,0.41088767]
[1750034688589,0.458274,105740.0,105720.0,0.41088767]
[1750034689009,0.45827403,105740.0,105720.0,0.41088767]
[1750034689440,0.45827404,105740.0,105720.0,0.41088767]
[1750034689904,0.40392967,105740.0,105720.0,0.41088767]
[1750034690129,0.78939916,105740.0,105720.0,0.41088767]
[1750034690343,0.79827404,105740.0,105720.0,0.41088767]
[1750034690820,0.79827403,105740.0,105720.0,0.41088767]
[1750034691249,0.78939916,105740.0,105720.0,0.41088767]
[1750034691679,0.79827403,105740.0,105720.0,0.41088767]
[1750034691892,0.78939916,105740.0,105720.0,0.41088767]
[1750034693398,0.78939916,105740.0,105720.0,0.48121429]
[1750034693615,0.03062974,105740.0,105730.0,0.0317]
[1750034693830,0.02175479,105740.0,105730.0,0.05431139]
[1750034694747,0.02175479,105740.0,105730.0,0.93549576]
[1750034695013,0.01875479,105740.0,105730.0,1.00170708]
[1750034695237,0.01875479,105740.0,105730.0,1.06100627]
[1750034695238,0.02075479,105740.0,105730.0,1.06100627]
[1750034695495,0.02175479,105740.0,105730.0,1.06100627]
[1750034695966,0.01875479,105740.0,105730.0,1.06100627]
[1750034696421,0.01775479,105740.0,105730.0,1.06100627]
[1750034696875,0.01775479,105740.0,105730.0,1.06200627]
[1750034697355,0.01775479,105740.0,105730.0,1.0756794]
[1750034697826,0.01775479,105740.0,105730.0,1.03784436]
[1750034698055,0.01775479,105740.0,105730.0,1.02417123]
[1750034701158,0.01775479,105740.0,105730.0,0.62982686]
[1750034701372,0.01775479,105740.0,105730.0,0.47358686]
[1750034701583,0.01775479,105740.0,105730.0,0.62978686]
[1750034703450,0.01775479,105740.0,105730.0,1.15820803]
[1750034703678,0.01775479,105740.0,105730.0,1.12983175]
[1750034703845,0.01775479,105740.0,105730.0,1.18658431]
[1750034704239,0.01775479,105740.0,105730.0,1.14874927]
[1750034704679,0.01775479,105740.0,105730.0,1.18654443]
[1750034705571,0.01775479,105740.0,105730.0,1.22758443]
[1750034706008,0.01775479,105740.0,105730.0,1.11153268]
[1750034706483,0.01775479,105740.0,105730.0,1.36690418]
[1750034706706,0.01775479,105740.0,105730.0,1.33856707]
[1750034706923,0.01775479,105740.0,105730.0,1.71202321]
[1750034707138,0.01775479,105740.0,105730.0,1.5053257]
[1750034707363,0.01775479,105740.0,105730.0,1.65523083]
[1750034707578,0.01775479,105740.0,105730.0,1.75983765]
[1750034707796,0.01775479,105740.0,105730.0,1.76383711]
[1750034708003,0.01775479,105740.0,105730.0,1.744922]
[1750034708206,0.01775479,105740.0,105730.0,1.7543796]
[1750034708426,0.01775479,105740.0,105730.0,1.744922]
[1750034708639,0.01875479,105740.0,105730.0,1.79608559]
[1750034708825,0.01875479,105740.0,105730.0,1.80554328]
[1750034709089,0.01875479,105740.0,105730.0,1.79608559]
[1750034709316,0.01875479,105740.0,105730.0,1.601722]
[1750034709530,0.01875479,105740.0,105730.0,1.80833951]
[1750034709751,0.01875479,105740.0,105730.0,1.81779693]
[1750034711482,0.01875479,105740.0,105730.0,1.91750693]
[1750034711689,0.01875479,105740.0,105730.0,1.81779693]
[1750034711899,0.01861012,105740.0,105730.0,1.87437452]
[1750034712107,0.01861012,105740.0,105730.0,1.81779693]
[1750034713645,0.01861012,105740.0,105730.0,1.87435792]
[1750034714087,0.01861012,105740.0,105730.0,1.8649005]
[1750034714297,0.01861012,105740.0,105730.0,1.86490059]
[1750034714508,0.01861012,105740.0,105730.0,1.8743581]
[1750034714726,0.01861012,105740.0,105730.0,1.86490059]
[1750034714970,0.01861012,105740.0,105730.0,1.85544299]
[1750034715184,0.01861012,105740.0,105730.0,1.8649005]
[1750034715394,0.01861012,105740.0,105730.0,1.85544299]
[1750034715832,0.01861012,105740.0,105730.0,1.8459853]
[1750034716059,0.01861012,105740.0,105730.0,1.8744103]
[1750034716283,0.01861012,105740.0,105730.0,1.68524959]
[1750034716732,0.01861012,105740.0,105730.0,1.66633358]
[1750034717408,0.01861012,105740.0,105730.0,1.67579154]
[1750034717634,0.01861012,105740.0,105730.0,1.68524959]
[1750034717852,0.01861012,105740.0,105730.0,1.67579163]
[1750034718094,0.01861012,105740.0,105730.0,1.88386835]
[1750034718315,0.01861012,105740.0,105730.0,1.71825066]
[1750034718538,0.01861012,105740.0,105730.0,1.88382853]
[1750034718751,0.01861012,105740.0,105730.0,1.87437066]
[1750034718975,0.01861012,105740.0,105730.0,1.88382853]
[1750034719199,0.01861012,105740.0,105730.0,1.07482921]
[1750034719418,0.01861012,105740.0,105730.0,1.66629358]
[1750034719632,0.01861012,105740.0,105730.0,1.46917358]
[1750034719853,0.01861012,105740.0,105730.0,1.66629358]
[1750034720705,0.01861012,105740.0,105730.0,1.46917358]
[1750034720931,0.01861012,105740.0,105730.0,1.66625358]
[1750034721867,0.01861012,105740.0,105730.0,1.67571163]
[1750034722090,0.01861012,105740.0,105730.0,1.88378853]
[1750034722308,0.0625,105770.0,105750.0,0.28018988]
[1750034722519,0.0625,105770.0,105760.0,0.15612]
[1750034722757,0.0625,105770.0,105760.0,0.45892127]
[1750034723635,0.0655,105770.0,105760.0,0.45905496]
[1750034724528,0.0665,105770.0,105760.0,0.45905496]
[1750034725068,0.0655,105770.0,105760.0,0.45905496]
[1750034725283,0.0665,105770.0,105760.0,0.17886508]
[1750034730049,0.0357,105770.0,105760.0,0.17886508]
[1750034730269,0.0357,105770.0,105760.0,0.2071528]
[1750034730498,0.004,105770.0,105760.0,0.73121552]
[1750034730726,0.004,105770.0,105760.0,0.76221552]
[1750034730950,0.004,105770.0,105760.0,0.84450476]
[1750034731170,0.004,105770.0,105760.0,1.37099948]
[1750034731395,0.004,105770.0,105760.0,1.67328252]
[1750034731642,0.01,105780.0,105760.0,1.21603815]
[1750034731898,0.01,105780.0,105770.0,0.59122803]
[1750034732138,0.01,105780.0,105770.0,0.61383942]
[1750034732349,0.01,105780.0,105770.0,0.76654963]
[1750034733651,0.011,105780.0,105770.0,0.77154963]
[1750034733866,0.011,105780.0,105770.0,0.77158045]
[1750034734755,0.011,105780.0,105770.0,0.74720997]
[1750034734962,0.011,105780.0,105770.0,0.75120997]
[1750034737196,0.011,105780.0,105770.0,1.05000997]
[1750034737878,0.011,105780.0,105770.0,1.40455082]
[1750034738309,0.011,105780.0,105770.0,1.40453938]
[1750034738525,0.011,105780.0,105770.0,1.34798983]
[1750034738741,0.011,105780.0,105770.0,1.40452546]
[1750034739389,0.011,105780.0,105770.0,1.43294146]
[1750034740239,0.011,105780.0,105770.0,1.40452546]
[1750034740697,0.011,105780.0,105770.0,1.10572546]
[1750034742668,0.011,105780.0,105770.0,0.69684024]
[1750034742871,0.011,105780.0,105770.0,1.25624461]
[1750034743325,0.011,105780.0,105770.0,1.29391127]
[1750034743546,0.011,105780.0,105770.0,1.32431127]
[1750034745481,0.011,105780.0,105770.0,1.12735127]
[1750034745707,0.011,105780.0,105770.0,1.32431127]
[1750034745913,0.011,105780.0,105770.0,1.62311127]
[1750034746153,0.011,105780.0,105770.0,1.64207127]
[1750034746367,0.011,105780.0,105770.0,1.6231051]
[1750034747475,0.011,105780.0,105770.0,1.58544461]
[1750034749176,0.47174437,105780.0,105770.0,0.6485961]
[1750034749389,0.08627641,105780.0,105770.0,0.61093494]
[1750034749636,0.0774,105780.0,105770.0,0.61093494]
[1750034752028,0.47174437,105780.0,105770.0,0.03164221]
[1750034752225,0.48062223,105780.0,105770.0,0.165]
[1750034752452,0.54644155,105780.0,105770.0,0.165]
[1750034752677,0.54644191,105780.0,105770.0,0.165]
[1750034752894,0.54644191,105780.0,105770.0,0.16]
[1750034752895,0.53656337,105780.0,105770.0,0.16]
[1750034753116,0.51880659,105780.0,105770.0,0.156]
[1750034753587,0.51880659,105780.0,105770.0,0.157]
[1750034753802,0.52768483,105780.0,105770.0,0.157]
[1750034754011,0.54544146,105780.0,105770.0,0.156]
[1750034754237,0.52768488,105780.0,105770.0,0.157]
[1750034754457,0.52768495,105780.0,105770.0,0.157]
[1750034754891,0.51880659,105780.0,105770.0,0.157]
[1750034755106,0.527685,105780.0,105770.0,0.157]
[1750034755320,0.51880659,105780.0,105770.0,0.157]
[1750034755540,0.52768501,105780.0,105770.0,0.157]
[1750034755763,0.52768502,105780.0,105770.0,0.157]
[1750034756671,0.51880659,105780.0,105770.0,0.001]
[1750034756891,0.52768502,105780.0,105770.0,0.001]
[1750034757113,0.52768503,105780.0,105770.0,0.001]
[1750034757630,0.47962276,105780.0,105770.0,0.001]
[1750034758078,0.47074437,105780.0,105770.0,0.001]
[1750034758316,0.47962273,105780.0,105770.0,0.001]
[1750034758806,0.47074437,105780.0,105770.0,0.001]
[1750034759280,0.47962279,105780.0,105770.0,0.001]
[1750034759502,0.52758502,105780.0,105770.0,0.001]
[1750034759725,0.527585,105780.0,105770.0,0.001]
[1750034759957,0.52758501,105780.0,105770.0,0.001]
[1750034760401,0.51870665,105780.0,105770.0,0.001]
[1750034760619,5.43716113,105780.0,105770.0,0.001]
[1750034760831,5.7860398,105780.0,105770.0,0.001]
[1750034761034,5.78661408,105780.0,105770.0,0.001]
[1750034761257,6.02746554,105780.0,105770.0,0.001]
[1750034761480,6.02746554,105780.0,105760.0,0.00013369]
[1750034761481,0.28613861,105770.0,105760.0,0.00013369]
[1750034761693,6.52779017,105770.0,105760.0,0.00013369]
[1750034762112,6.59714617,105770.0,105760.0,0.00013369]
[1750034762986,0.0632,105740.0,105720.0,0.63499368]
[1750034763188,0.03,105730.0,105720.0,0.52915433]
[1750034763407,0.03,105730.0,105720.0,0.45527093]
[1750034764465,0.03,105730.0,105720.0,0.45727093]
[1750034764670,0.031,105730.0,105720.0,0.46327093]
[1750034769546,0.031,105730.0,105720.0,0.30727093]
[1750034769754,0.0619,105730.0,105720.0,0.46331093]
[1750034769963,0.4996336,105730.0,105720.0,0.46331093]
[1750034770194,0.4996336,105730.0,105720.0,0.30727093]
[1750034770403,0.0619,105730.0,105720.0,0.30727093]
[1750034771026,0.0619,105730.0,105720.0,0.46331093]
[1750034771551,0.45624437,105730.0,105720.0,0.46331093]
[1750034775199,0.55248613,105730.0,105720.0,0.30727093]
[1750034775479,5.8201,105730.0,105720.0,0.30727093]
[1750034775741,5.8201,105730.0,105720.0,0.00847093]
[1750034776006,5.8201,105730.0,105720.0,0.00647093]
[1750034776285,5.8201,105730.0,105720.0,0.00747093]
[1750034776507,5.8191,105730.0,105720.0,0.00147093]
[1750034776761,0.4009,105730.0,105720.0,0.00047093]
[1750034777001,0.01244611,105740.0,105720.0,0.00047093]
[1750034777002,0.04484611,105740.0,105720.0,0.00047093]
[1750034777245,0.001,105730.0,105720.0,0.30427093]
[1750034777478,0.001,105730.0,105720.0,0.36647093]
[1750034777718,0.001,105730.0,105720.0,0.33017093]
[1750034777952,0.002,105730.0,105720.0,0.33217093]
[1750034778183,0.002,105730.0,105720.0,0.33017093]
[1750034778656,0.003,105730.0,105720.0,0.33517093]
[1750034779169,0.002,105730.0,105720.0,0.33517093]
[1750034779404,0.002,105730.0,105720.0,0.33617093]
[1750034780122,0.002,105730.0,105720.0,0.36757093]
[1750034780377,0.002,105730.0,105720.0,0.3901465]
[1750034780829,0.002,105730.0,105720.0,0.3587465]
[1750034783380,0.002,105730.0,105720.0,0.3910465]
[1750034783603,0.002,105730.0,105720.0,0.5470865]
[1750034784053,0.002,105730.0,105720.0,0.3910465]
[1750034784288,0.002,105730.0,105720.0,0.5147465]
[1750034786320,0.002,105730.0,105720.0,0.54299747]
[1750034787286,0.002,105730.0,105720.0,0.38699747]
[1750034787499,0.002,105730.0,105720.0,0.51209747]
[1750034789424,0.002,105730.0,105720.0,0.60824669]
[1750034789658,0.002,105730.0,105720.0,0.58035863]
[1750034790415,0.002,105730.0,105720.0,1.007403]
[1750034790639,0.002,105730.0,105720.0,0.97592942]
[1750034790857,0.002,105730.0,105720.0,1.13518826]
[1750034791072,0.002,105730.0,105720.0,0.88173263]
[1750034791288,0.002,105730.0,105720.0,1.07865263]
[1750034791983,0.45594437,105740.0,105720.0,0.64740826]
[1750034792231,0.001,105730.0,105720.0,0.55509813]
[1750034792479,0.001,105730.0,105720.0,0.71309813]
[1750034792928,0.001,105730.0,105720.0,0.51417813]
[1750034793157,0.0332,105730.0,105720.0,0.4233318]
[1750034793376,0.0322,105730.0,105720.0,0.4173318]
[1750034793602,0.0322,105730.0,105720.0,0.5753318]
[1750034793795,0.0322,105730.0,105720.0,0.4173318]
[1750034794046,0.50079881,105730.0,105720.0,0.4173318]
[1750034794284,0.45914437,105730.0,105720.0,0.5773318]
[1750034794542,0.45914437,105730.0,105720.0,0.54899256]
[1750034794765,0.45914437,105730.0,105720.0,0.51119713]
[1750034794985,0.45814437,105730.0,105720.0,0.50619713]
[1750034795222,0.0638,105730.0,105720.0,0.50819713]
[1750034795414,0.0648,105730.0,105720.0,0.50819713]
[1750034795621,0.0648,105730.0,105720.0,0.35019713]
[1750034795822,0.0648,105730.0,105720.0,0.50619713]
[1750034796463,0.0638,105730.0,105720.0,0.50619713]
[1750034796934,0.0638,105730.0,105720.0,0.4798465]
[1750034797159,0.0638,105730.0,105720.0,0.45727093]
[1750034797599,0.45814437,105730.0,105720.0,0.4799483]
[1750034799764,0.0638,105730.0,105720.0,0.3239483]
[1750034799975,0.10961444,105730.0,105720.0,0.4799083]
[1750034800190,0.50395881,105730.0,105720.0,0.4799083]
[1750034801267,0.50395881,105730.0,105720.0,0.3239483]
[1750034801484,0.50395881,105730.0,105720.0,0.4799083]
[1750034802864,5.66831937,105730.0,105720.0,0.3239483]
[1750034803077,5.76456113,105730.0,105720.0,0.0251483]
[1750034803344,5.76456113,105730.0,105720.0,0.00247093]
[1750034804218,5.76456113,105730.0,105720.0,0.00047093]
[1750034804697,5.86371035,105730.0,105720.0,0.00147093]
[1750034805138,5.87316768,105730.0,105720.0,0.00147093]
[1750034805358,5.86371035,105730.0,105720.0,0.00147093]
[1750034805853,5.86671035,105730.0,105720.0,0.00147093]
[1750034806498,6.2850529,105730.0,105720.0,0.00147093]
[1750034806718,6.63963265,105730.0,105720.0,0.00147093]
[1750034806933,0.0619,105710.0,105700.0,0.2988]
[1750034807176,4.933775,105700.0,105690.0,0.45476]
[1750034807393,5.32811937,105700.0,105690.0,0.2988]
[1750034808284,4.870175,105700.0,105690.0,0.33]
[1750034808733,4.870175,105700.0,105690.0,0.332]
[1750034809593,4.88233601,105700.0,105690.0,0.332]
[1750034809845,5.30778038,105700.0,105690.0,0.3028]
[1750034810502,5.33908038,105700.0,105690.0,0.3028]
[1750034811236,5.30778038,105700.0,105690.0,0.3028]
[1750034812350,5.34068038,105700.0,105690.0,0.3028]
[1750034812576,5.4368296,105700.0,105690.0,0.3028]
[1750034813507,5.30778038,105700.0,105690.0,0.3028]
[1750034815505,5.34068038,105700.0,105690.0,0.3028]
[1750034815730,5.43692214,105700.0,105690.0,0.004]
[1750034816865,5.43692214,105700.0,105690.0,0.002]
[1750034817086,5.53307136,105700.0,105690.0,0.002]
[1750034817307,4.870175,105690.0,105680.0,0.156]
[1750034817558,0.55098613,105690.0,105670.0,0.6039]
[1750034817785,0.39434437,105680.0,105670.0,0.2988]
[1750034818013,0.4981336,105680.0,105670.0,0.156]
[1750034818241,0.4981336,105680.0,105670.0,0.00888663]
[1750034818468,0.4981336,105680.0,105660.0,0.4854]
[1750034818747,4.870175,105680.0,105670.0,0.06244127]
[1750034819853,4.870175,105680.0,105670.0,0.06544127]
[1750034820114,4.870175,105680.0,105670.0,0.03374127]
[1750034820346,0.52109359,105680.0,105670.0,0.01202766]
[1750034820565,0.52109359,105680.0,105670.0,0.00014127]
[1750034820755,0.52109359,105680.0,105670.0,0.01202773]
[1750034821004,0.52209359,105680.0,105670.0,0.01202772]
[1750034821229,0.52209359,105680.0,105670.0,0.00314127]
[1750034821456,0.42594437,105680.0,105670.0,0.00514127]
[1750034821863,0.42594437,105680.0,105670.0,0.02402776]
[1750034822076,0.0316,105680.0,105670.0,0.01514127]
[1750034822296,0.0316,105680.0,105670.0,0.02402773]
[1750034822535,0.0316,105680.0,105670.0,0.02402785]
[1750034822757,0.62998057,105680.0,105670.0,0.01514127]
[1750034823187,0.62998057,105680.0,105670.0,0.02402782]
[1750034823403,0.39434437,105680.0,105670.0,0.02402786]
[1750034823631,0.39434437,105680.0,105670.0,0.01514127]
[1750034824113,0.39434437,105680.0,105670.0,0.02402795]
[1750034824326,0.39434437,105680.0,105670.0,0.01514127]
[1750034824533,0.39434437,105680.0,105670.0,0.02402797]
[1750034824749,0.39434437,105680.0,105670.0,0.01514127]
[1750034825410,5.26451937,105680.0,105670.0,0.02402797]
[1750034825626,5.26451937,105680.0,105670.0,0.02402807]
[1750034825848,5.26451937,105680.0,105670.0,0.01514127]
[1750034825849,5.32809984,105680.0,105670.0,0.01514127]
[1750034826068,5.26451937,105680.0,105670.0,0.01514127]
[1750034826762,5.26451937,105680.0,105670.0,0.02402801]
[1750034826983,5.26451937,105680.0,105670.0,0.01514127]
[1750034827194,5.26451937,105680.0,105670.0,0.02402808]
[1750034827415,5.26451937,105680.0,105670.0,0.02402813]
[1750034827641,5.29771937,105680.0,105670.0,0.01514127]
[1750034828804,5.8746512,105680.0,105670.0,0.01514127]
[1750034829025,5.8746512,105680.0,105670.0,0.02402905]
[1750034829279,5.8746512,105680.0,105670.0,0.02402909]